[Event "Czech Open-Rapid 2022"]
[Site "Pardubice"]
[Date "2022.07.21"]
[Round "7.40"]
[White "Lev, Lukas"]
[Black "Zdrazil, Tomas"]
[Result "1/2-1/2"]
[ECO "A05"]
[WhiteElo "1679"]
[BlackElo "2122"]
[Annotator "NA RC"]
[PlyCount "119"]
[EventDate "2022.07.20"]
[EventType "swiss"]
[EventCountry "CZE"]
[SourceTitle "playchess.com"]
[Source "ChessBase"]
[SourceQuality "1"]
[TimeControl "1200+10"]

1. Nf3 {[%emt 0:00:17]} Nf6 {[%emt 0:00:02]} 2. g3 {[%emt 0:00:04]} g6 {[%emt 0:00:02]} 3. Bg2 {[%emt 0:00:01]} Bg7 {[%emt 0:00:01]} 4. O-O {[%emt 0:00:04]} O-O {[%emt 0:00:03]} 5. d3 {[%emt 0:00:02]} c5 {[%emt 0:02:03]} 6. e4 {[%emt 0:00:12]} Nc6 {[%emt 0:00:03]} 7. Nc3 {[%emt 0:00:27]} d6 {[%emt 0:03:45]} 8. Bd2 {[%emt 0:00:49]} Rb8 {[%emt 0:00:04]} 9. Qc1 {[%emt 0:00:05]} Re8 {[%emt 0:00:29]} 10. a4 {[%emt 0:01:30]} a6 {[%emt 0:00:01]} 11. Nd1 {[%emt 0:00:02]} d5 {[%emt 0:00:38]} 12. exd5 {[%emt 0:00:37]} Nxd5 {[%emt 0:00:02]} 13. Ne3 {[%emt 0:00:35]} e6 {[%emt 0:02:09]} 14. Ra3 {[%emt 0:01:41]} b6 {[%emt 0:01:58]} 15. Bc3 {[%emt 0:03:03]} Nxc3 {[%emt 0:00:28]} 16. bxc3 {[%emt 0:00:07]} Bb7 {[%emt 0:01:13]} 17. Qd2 {[%emt 0:01:15]} Na5 {[%emt 0:06:02]} 18. Re1 {[%emt 0:03:27]} Bh6 {[%emt 0:00:10]} 19. Qd1 {[%emt 0:01:27]} Qc7 {[%emt 0:02:07]} 20. Nd2 {[%emt 0:02:25]} Bxg2 {[%emt 0:00:16]} 21. Kxg2 {[%emt 0:00:04]} Qc6+ {[%emt 0:00:16]} 22. Qf3 {[%emt 0:00:52]} Qxf3+ {[%emt 0:00:35]} 23. Kxf3 {[%emt 0:00:11]} Bg7 {[%emt 0:00:29]} 24. Rb1 {[%emt 0:01:00]} Rb7 {[%emt 0:00:05]} 25. Ndc4 {[%emt 0:00:17]} Nxc4 {[%emt 0:00:14]} 26. Nxc4 {[%emt 0:00:07]} Reb8 {[%emt 0:00:16]} 27. Rab3 {[%emt 0:00:05]} f5 {[%emt 0:00:50]} 28. Rxb6 {[%emt 0:01:06]} Rxb6 {[%emt 0:00:02]} 29. Rxb6 {[%emt 0:00:06]} Rxb6 {[%emt 0:00:05]} 30. Nxb6 {[%emt 0:00:03]} Bxc3 {[%emt 0:00:03]} 31. Nd7 {[%emt 0:00:22]} Bd4 {[%emt 0:00:38]} 32. c3 {[%emt 0:00:12]} Bxc3 {[%emt 0:00:01]} 33. Nxc5 {[%emt 0:00:02]} a5 {[%emt 0:00:13]} 34. Nxe6 {[%emt 0:00:11]} Kf7 {[%emt 0:00:01]} 35. Nc7 {[%emt 0:00:55]} Bd4 {[%emt 0:00:08]} 36. Nb5 {[%emt 0:00:09]} Bb6 {[%emt 0:00:10]} 37. Nd6+ {[%emt 0:00:51]} Ke6 {[%emt 0:00:03]} 38. Nc4 {[%emt 0:00:02]} Bc7 {[%emt 0:00:01]} 39. Nd2 {[%emt 0:00:39]} Kd5 {[%emt 0:00:14]} 40. Nb3 {[%emt 0:00:02]} Bb6 {[%emt 0:00:22]} 41. Kg2 {[%emt 0:00:28]} g5 {[%emt 0:00:07]} 42. h4 {[%emt 0:00:17]} gxh4 {[%emt 0:00:11]} 43. gxh4 {[%emt 0:00:12]} h5 {[%emt 0:00:17]} 44. Kf3 Ke5 45. d4+ {[%emt 0:00:57]} Kd5 {[%emt 0:00:16]} 46. Kf4 {[%emt 0:00:01]} Kc4 {[%emt 0:00:05]} 47. Nxa5+ {[%emt 0:00:19]} Bxa5 {[%emt 0:00:02]} 48. Kxf5 {[%emt 0:00:02]} Be1 {[%emt 0:00:18]} 49. f3 {[%emt 0:00:25]} Bxh4 {[%emt 0:00:05]} 50. a5 {[%emt 0:00:09]} Bf2 {[%emt 0:00:08]} 51. a6 {[%emt 0:00:07]} Bxd4 {[%emt 0:00:02]} 52. Kg5 {[%emt 0:00:02]} Kd5 {[%emt 0:00:06]} 53. Kxh5 {[%emt 0:00:02]} Ke6 {[%emt 0:00:01]} 54. Kg6 {[%emt 0:00:04]} Ke7 {[%emt 0:00:05]} 55. f4 {[%emt 0:00:02]} Kf8 {[%emt 0:00:09]} 56. f5 {[%emt 0:00:05]} Be3 {[%emt 0:00:03]} 57. Kf6 {[%emt 0:00:03]} Bf2 {[%emt 0:00:03]} 58. Ke6 {[%emt 0:00:02]} Bg1 {[%emt 0:00:03]} 59. Kd7 {[%emt 0:00:38]} Kf7 {[%emt 0:00:02]} 60. Kc6 {[%emt 0:00:03]} 1/2-1/2

[Event "Czech Open-Rapid 2022"]
[Site "Pardubice"]
[Date "2022.07.21"]
[Round "7.41"]
[White "Mlejnek, Stanislav"]
[Black "Valenta, Vit Vaclav"]
[Result "0-1"]
[ECO "C89"]
[WhiteElo "1666"]
[BlackElo "1996"]
[Annotator "NA RC"]
[PlyCount "44"]
[EventDate "2022.07.20"]
[EventType "swiss"]
[EventCountry "CZE"]
[SourceTitle "playchess.com"]
[Source "ChessBase"]
[SourceQuality "1"]
[TimeControl "1200+10"]

1. e4 {[%emt 0:02:10]} e5 {[%emt 0:00:02]} 2. Nf3 {[%emt 0:00:05]} Nc6 {[%emt 0:00:01]} 3. Bb5 {[%emt 0:00:01]} a6 {[%emt 0:00:01]} 4. Ba4 {[%emt 0:00:01]} Nf6 {[%emt 0:00:02]} 5. O-O {[%emt 0:00:02]} Be7 {[%emt 0:00:01]} 6. Re1 {[%emt 0:00:09]} b5 {[%emt 0:00:02]} 7. Bb3 {[%emt 0:00:01]} O-O {[%emt 0:00:03]} 8. c3 {[%emt 0:00:01]} d5 {[%emt 0:00:02]} 9. exd5 {[%emt 0:00:13]} e4 {[%emt 0:00:01]} 10. dxc6 {[%emt 0:00:31]} exf3 {[%emt 0:00:02]} 11. Qxf3 {[%emt 0:00:30]} Bg4 {[%emt 0:00:06]} 12. Qg3 {[%emt 0:01:00]} Bd6 {[%emt 0:00:48]} 13. Qh4 {[%emt 0:00:36]} Re8 {[%emt 0:00:07]} 14. f3 {[%emt 0:01:30]} Bc5+ {[%emt 0:01:14]} 15. d4 {[%emt 0:00:29]} Bxd4+ {[%emt 0:00:02]} 16. cxd4 {[%emt 0:01:06]} Qxd4+ {[%emt 0:00:02]} 17. Kh1 {[%emt 0:00:59]} Rxe1+ {[%emt 0:00:04]} 18. Qxe1 {[%emt 0:00:03]} Re8 {[%emt 0:00:02]} 19. Qxe8+ {[%emt 0:02:55]} Nxe8 {[%emt 0:00:08]} 20. fxg4 {[%emt 0:00:03]} Qf2 {[%emt 0:00:20]} 21. h3 Qe1+ {[%emt 0:00:13]} 22. Kh2 {[%emt 0:01:06]} Qxc1 0-1

[Event "Czech Open-Rapid 2022"]
[Site "Pardubice"]
[Date "2022.07.21"]
[Round "7.42"]
[White "Rakhmangulova, Iulia"]
[Black "Kavalir, Jan"]
[Result "1/2-1/2"]
[ECO "C02"]
[WhiteElo "1904"]
[BlackElo "1987"]
[Annotator "TA"]
[PlyCount "78"]
[EventDate "2022.07.20"]
[EventType "swiss"]
[EventCountry "CZE"]
[SourceTitle "playchess.com"]
[Source "ChessBase"]
[SourceQuality "1"]
[TimeControl "1200+10"]

{[%evp 10,78,-80,-83,-50,-37,-22,-11,14,-42,-10,-120,0,0,0,-27,-21,-34,96,101,134,105,129,104,302,197,202,152,152,122,220,57,78,63,465,439,428,306,279,0,397,0,0,0,0,-40,0,8,8,-14,13,13,64,58,66,76,81,75,92,68,114,122,126,79,112,70,116,112,114,0,0]} 1. e4 {[%emt 0:00:01]} e6 {[%emt 0:00:01]} 2. d4 {[%emt 0:00:02]} d5 {[%emt 0:00:01]} 3. e5 {[%emt 0:00:01]} c5 {[%emt 0:00:01]} 4. Qg4 {[%emt 0:00:01]} Nc6 {[%emt 0:00:28]} 5. Nf3 {[%emt 0:00:01]} cxd4 {[%emt 0:00:59]} 6. Bd3 {[%emt 0:00:02]} h5 {[%emt 0:00:37] C02: French: Advance Variation.} 7. Qf4 {[%emt 0:00:10]} Nh6 {[%emt 0:03:18]} 8. O-O {[%emt 0:00:17]} Bd7 {[%emt 0:00:59]} 9. a3 {[%emt 0:00:02]} (9. Nxd4 $11 Nb4 10. Nc3) 9... Qc7 {[%emt 0:01:02] [#]} 10. b4 $146 {[%emt 0:00:22]} (10. c3 $11) ({Predecessor:} 10. c3 Be7 11. cxd4 O-O-O 12. Nc3 a6 13. h4 Rdf8 14. Qg3 Ng4 15. Bf4 Qb6 16. Rfc1 {1-0 (30) Smith,A (2151)-Faldon,D (1951) Margate 2014}) 10... O-O-O {[%emt 0:00:09]} (10... Ng4 $17 {Hoping for ...0-0-0.} 11. Re1 O-O-O 12. Qxf7 Ngxe5 13. Nxe5 Nxe5) 11. b5 $11 {[%emt 0:00:55]} Na5 {[%emt 0:00:09]} 12. Qxd4 {[%emt 0:00:15]} Bc5 {[%emt 0:00:42]} 13. Qb2 {[%emt 0:00:51]} Bb6 {[%emt 0:01:12]} (13... Ng4 $15 {keeps the upper hand.}) 14. Bg5 $16 {[%emt 0:01:15][%cal Bc1g5,Bg5h4,Bh4g3][%mdl 32]} Rde8 {[%emt 0:01:05]} 15. Nbd2 $1 {[%emt 0:00:05]} Ng4 {[%emt 0:00:47][%cal Of7f6]} 16. c4 {Threatens to win with cxd5.} (16. h3 Kb8) 16... d4 {[%emt 0:01:13]} (16... dxc4 $2 17. Rac1 $18) (16... Nxc4 $2 17. Bxc4 dxc4 18. Rac1 $18) (16... Qc5 $16 {was necessary.}) 17. Rfe1 {[%emt 0:03:11]} f6 {[%emt 0:00:23]} 18. exf6 {[%emt 0:00:31]} gxf6 {[%emt 0:00:08]} 19. Bh4 {[%emt 0:00:09] And now Ne4 would win.} e5 {[%emt 0:01:11]} (19... f5 $16) 20. h3 $2 {[%emt 0:00:40]} (20. c5 $18 Bxc5 21. Ne4 (21. h3 f5 $11)) 20... f5 $14 {[%emt 0:00:09] Prevents Ne4.} 21. Bg3 {[%emt 0:01:55] Strongly threatening c5.} ({Much worse is} 21. hxg4 hxg4 22. Nxe5 Rxh4 $17) 21... Qc5 $2 {[%emt 0:01:09][%mdl 8192]} 22. hxg4 $18 {[%emt 0:01:58]} e4 {[%emt 0:00:28] [#]} 23. Bxe4 $1 {[%emt 0:01:41]} hxg4 {[%emt 0:01:03]} 24. Ng5 {[%emt 0:02:03]} (24. Bd5 $18) 24... Bc7 {[%emt 0:02:23][%mdl 8192]} (24... fxe4 $11 {and Black stays safe.} 25. Ndxe4 Rxe4 26. Nxe4 Qh5 27. Nd6+ Kd8) 25. Bd5 $2 {[%emt 0:02:10]} ({Only move:} 25. Qb4 $1 $18 {[%cal Rb4c5]} Qb6 26. Bxf5 $1 {[%mdl 512]} Bxf5 27. Nf7) 25... Rxe1+ $11 {[%emt 0:00:33]} 26. Rxe1 {[%emt 0:00:03] The board is on fire.} Bxg3 {[%emt 0:00:07]} 27. Qb4 {[%emt 0:01:39] Active counter play!} Qxb4 {[%emt 0:02:38]} (27... Bh2+ $15 28. Kf1 Bd6 29. Qxc5+ (29. Qxa5 $2 Rh1+ 30. Ke2 d3+ 31. Kxd3 Rxe1 $19) 29... Bxc5) 28. axb4 {[%emt 0:00:03]} Bf4 {[%emt 0:00:02][%csl LRd2,LRg5] [#]} 29. Rd1 {[%emt 0:00:41] aiming for Nf7.} Bxg5 {[%emt 0:00:06]} (29... Nc6 30. bxc6) 30. bxa5 Bf4 {[%emt 0:01:03]} (30... Rd8 $11) 31. Nb3 $14 {[%emt 0:00:20]} Bh2+ {[%emt 0:00:05]} 32. Kf1 {[%emt 0:00:16]} Be5 {[%emt 0:00:05]} 33. Ke2 {[%emt 0:00:22]} f4 {[%emt 0:00:43]} 34. Nxd4 {[%emt 0:00:23]} g3 {[%emt 0:00:07]} (34... Bc7 $14 {feels stronger.}) 35. fxg3 $16 {[%emt 0:00:30]} fxg3 {[%emt 0:00:13]} 36. Bf3 {[%emt 0:00:38] Against Bg4} ({White should play} 36. Kd3) 36... Rh4 {[%emt 0:00:17]} 37. Ke3 {[%emt 0:00:46]} Bf4+ {[%emt 0:00:18]} (37... Bc7 $14) 38. Kd3 {[%emt 0:00:24]} Be5 {[%emt 0:00:03] [#]} 39. Ke3 {[%emt 0:00:33]} (39. Be4 $1 $16) 39... Bf4+ $1 {Weighted Error Value: White=0.63/Black=0.67} 1/2-1/2

[Event "Czech Open-Rapid 2022"]
[Site "Pardubice"]
[Date "2022.07.21"]
[Round "7.43"]
[White "Ni, Polina"]
[Black "Mojzis, Martin"]
[Result "1/2-1/2"]
[ECO "C89"]
[WhiteElo "1871"]
[BlackElo "1987"]
[Annotator "TA"]
[PlyCount "98"]
[EventDate "2022.07.20"]
[EventType "swiss"]
[EventCountry "CZE"]
[SourceTitle "playchess.com"]
[Source "ChessBase"]
[SourceQuality "1"]
[TimeControl "1200+10"]

{[%evp 23,98,-24,-17,-109,-79,-90,-89,-142,-137,-133,-110,-147,-61,-54,-36,-36,-29,-36,-36,-36,-36,-36,-48,-47,-51,-55,-48,-44,-18,-247,0,0,0,-2,0,-266,-12,-26,-21,-25,-24,-13,-26,-21,-15,-14,-8,-82,-2,-10,0,-186,0,0,62,0,0,0,0,0,0,0,0,0,0,0,0,0,0,0,0,0,0,0,0,0,0]} 1. e4 {[%emt 0:00:03]} e5 {[%emt 0:00:02]} 2. Nf3 {[%emt 0:00:01]} Nc6 {[%emt 0:00:01]} 3. Bb5 {[%emt 0:00:02]} a6 {[%emt 0:00:01]} 4. Ba4 {[%emt 0:00:01]} Nf6 {[%emt 0:00:02][%cal Bg8f6,Bf6d5,Bd5e3][%mdl 32]} 5. O-O {[%emt 0:00:04]} b5 {[%emt 0:00:01]} 6. Bb3 {[%emt 0:00:01]} Be7 {[%emt 0:00:03]} 7. Re1 {[%emt 0:00:27]} O-O {[%emt 0:00:09]} 8. c3 {[%emt 0:00:01]} d5 {[%emt 0:00:05]} 9. exd5 {[%emt 0:00:12]} Nxd5 {[%emt 0:00:03]} 10. d4 {[%emt 0:00:07]} exd4 {[%emt 0:01:01]} 11. Nxd4 {[%emt 0:00:03]} Nxd4 {[%emt 0:00:23]} 12. Qxd4 {[%emt 0:00:01]} Bb7 {[%emt 0:00:29]} 13. Be3 {[%emt 0:02:56] C89: Closed Ruy Lopez: Marshall Attack.} (13. Nd2 $11 {keeps the balance.}) 13... Bf6 {[%emt 0:04:12] [#]} 14. Qd3 $146 {[%emt 0:03:06]} ({Predecessor:} 14. Qd1 Nxe3 15. fxe3 Qxd1 16. Rxd1 Rad8 17. Nd2 Rfe8 18. Kf2 Bg5 19. Nf1 Kf8 20. c4 Bf6 21. cxb5 axb5 22. Rxd8 Rxd8 {½-½ (28) Pena Alcaide,J-Cuadrado Garcia,J (1955) Mondariz 2004}) 14... Nxe3 {[%emt 0:00:17]} 15. Qxd8 {[%emt 0:02:33]} (15. Qxe3 $142 Bg5 16. Qc5) 15... Raxd8 {[%emt 0:00:42]} 16. Rxe3 {[%emt 0:00:20]} Bg5 {[%emt 0:01:57]} 17. Re1 {[%emt 0:02:55]} Rd6 {[%emt 0:00:33]} (17... c5 $17 18. Na3 Rd2) 18. a4 $15 {[%emt 0:01:16]} b4 {[%emt 0:03:40]} 19. cxb4 {[%emt 0:02:15]} Rd4 {[%emt 0:01:08]} 20. b5 {[%emt 0:01:49]} axb5 {[%emt 0:00:09]} 21. axb5 {[%emt 0:00:02]} Rb4 $40 {[%emt 0:00:02][%csl LRb3,LRb5][%mdl 128] Black has some attack.} 22. Ra3 {[%emt 0:00:47]} Rxb5 {[%emt 0:01:41]} 23. Nc3 {[%emt 0:00:09]} Rb4 {[%emt 0:00:52]} 24. Na2 {[%emt 0:01:51]} Rb6 {[%emt 0:00:45]} 25. Nc3 {[%emt 0:00:08]} Bd2 {[%emt 0:01:42] A strong pair of Bishops.} 26. Re7 {[%emt 0:01:11]} (26. Re2 $11 {and White stays safe.} Bg5 27. Na4) 26... Bxc3 $2 {[%emt 0:02:40]} (26... Bf4 $1 $19 {[%cal Rf4d6] aiming for ...Bd6.} 27. Nd5 Bxd5 28. Bxd5 Bd6 29. Rxf7 Bxa3 30. Rf3+ Kh8 31. Rxa3 Rxb2) 27. bxc3 $11 {[%emt 0:00:09][%cal Bb2c3,Bc3c4][%mdl 32]} Bd5 $1 {[%emt 0:00:01]} 28. c4 {[%emt 0:02:05]} Be6 {[%emt 0:00:01]} 29. h3 $2 {[%emt 0:00:12][%mdl 8192] [#]} (29. Rxc7 $11 {and White has nothing to worry.} Rfb8 30. Bd1) 29... Rfb8 $2 {[%emt 0:00:24]} (29... Rc8 $1 $19 {...Kf8 is the strong threat.} 30. Ba4 Kf8 31. Rxe6 Rxe6) 30. Bc2 {[%emt 0:00:10]} Rc6 {[%emt 0:01:13] Threatens to win with ...Kf8.} 31. Ra7 $1 {[%emt 0:00:08]} Rc8 {[%emt 0:00:04]} 32. Be4 {[%emt 0:00:07]} Rxc4 {[%emt 0:00:12]} 33. Bb7 {[%emt 0:00:08]} Rd8 {[%emt 0:00:41] And now ...Kf8 would win.} 34. Bf3 $1 {[%emt 0:00:07]} c5 {[%emt 0:00:12]} 35. Rec7 {[%emt 0:00:18]} (35. Bg4 $1 $11 Bxg4 36. hxg4) 35... Rc2 {[%emt 0:00:12]} (35... g6 $17 {Black wants to play ...h5.} 36. Bg4 Bd5) 36. Ra5 {[%emt 0:00:05]} c4 {[%emt 0:00:00]} 37. Rac5 $2 {[%emt 0:00:17] [#]} (37. Bd5 $1 $11 {and White is okay.}) 37... Rcd2 $2 {[%emt 0:00:00]} (37... g6 $1 $19 {White must now prevent ...Rdd2.} 38. Bg4 Bxg4 39. hxg4 Rd1+ 40. Kh2 Rxf2 41. Rxc4 Rdd2) 38. Bg4 $1 {[%emt 0:00:10]} Bd5 {[%emt 0:00:39]} (38... Bxg4 $11 39. hxg4 h6) 39. Rc8 {[%emt 0:00:09]} (39. Rd7 $14 Be6 40. Bxe6 fxe6 41. Re7) 39... Be6 {[%emt 0:00:09] The position is equal.} 40. Bxe6 {[%emt 0:00:06]} fxe6 {[%emt 0:00:01]} 41. Rxd8+ {[%emt 0:00:11]} Rxd8 {[%emt 0:00:01]} 42. Rxc4 {[%emt 0:00:01][%mdl 4096] Endgame KR-KR} Kf7 {[%emt 0:00:02]} 43. Rc7+ {[%emt 0:00:07]} Kf6 {[%emt 0:00:01]} 44. g4 {[%emt 0:00:12]} h6 {[%emt 0:00:24]} 45. Kg2 {[%emt 0:00:02]} g5 {[%emt 0:00:04]} 46. Kg3 {[%emt 0:00:05]} Rd3+ {[%emt 0:00:07]} 47. f3 {[%emt 0:00:03]} Rb3 {[%emt 0:00:30]} 48. Rh7 Kg6 {[%emt 0:00:01]} 49. Re7 {[%emt 0:00:06]} Kf6 {[%emt 0:00:06] Weighted Error Value: White=0.41/Black=0.41} 1/2-1/2

[Event "Czech Open-Rapid 2022"]
[Site "Pardubice"]
[Date "2022.07.21"]
[Round "7.44"]
[White "Kokes, Bohuslav"]
[Black "Soukup, Stepan"]
[Result "1-0"]
[ECO "B95"]
[WhiteElo "1909"]
[BlackElo "1809"]
[Annotator "TA"]
[PlyCount "85"]
[EventDate "2022.07.20"]
[EventType "swiss"]
[EventCountry "CZE"]
[SourceTitle "playchess.com"]
[Source "ChessBase"]
[SourceQuality "1"]
[TimeControl "1200+10"]

{[%evp 15,85,-2,42,33,40,16,20,20,31,26,10,23,31,8,0,-67,27,-25,61,46,293,0,0,0,0,0,289,283,547,580,506,474,476,0,0,-111,725,833,797,387,327,0,0,0,266,-63,-45,-114,-91,-153,-33,-18,0,0,248,228,208,68,5485,5485,2625,5373,2997,3252,29984,29985,29985,29986,29986,29987,29987,29988]} 1. e4 {[%emt 0:00:03]} c5 {[%emt 0:00:02]} 2. Nf3 {[%emt 0:00:05]} d6 {[%emt 0:00:02]} 3. d4 {[%emt 0:00:05]} cxd4 {[%emt 0:00:02]} 4. Nxd4 {[%emt 0:00:05]} Nf6 {[%emt 0:00:02]} 5. Nc3 {[%emt 0:00:05]} a6 {[%emt 0:00:03]} 6. Bg5 {[%emt 0:00:08]} e6 {[%emt 0:00:02]} 7. Qd2 {[%emt 0:00:04]} Be7 {[%emt 0:00:09]} 8. O-O-O {[%emt 0:00:06]} Nbd7 {[%emt 0:00:09]} 9. f3 {[%emt 0:00:40] B95: Sicilian Najdorf: 6 Bg5 e6, unusual White 7th moves.} Qc7 {[%emt 0:00:17]} 10. Kb1 {[%emt 0:00:09]} O-O {[%emt 0:00:30]} 11. g4 {[%emt 0:00:10] The position is equal.} b5 $1 {[%emt 0:00:02]} 12. a3 {[%emt 0:00:05]} Bb7 {[%emt 0:00:20]} 13. h4 {[%emt 0:00:12] [#]} Rfc8 $146 {[%emt 0:01:38]} ({Predecessor:} 13... Ne5 14. Bxf6 Bxf6 15. g5 Be7 16. h5 Nc4 17. Bxc4 Qxc4 18. Rhg1 d5 19. exd5 Bxd5 {1-0 (26) Droin,A (2289)-Zvereva,M (1937) Chess.com INT 2020}) 14. Bf4 {[%emt 0:02:06]} Ne5 {[%emt 0:04:21][%cal Oe5f3]} 15. g5 {[%emt 0:05:52] [#]} (15. Be2 $11) 15... Nfd7 {[%emt 0:00:02]} (15... Nxf3 $1 $15 16. Nxf3 (16. Qf2 Nxe4) 16... Nxe4 17. Nxe4 Bxe4) 16. h5 {[%emt 0:00:20]} (16. Bxe5 $142 Nxe5 17. h5) 16... Nb6 {[%emt 0:00:25]} (16... b4 $1 $11 17. axb4 Rab8) 17. g6 $14 {[%emt 0:00:16]} Nec4 $2 {[%emt 0:01:16]} (17... Nbc4 $1 $14 18. gxf7+ Kxf7) 18. gxf7+ $2 {[%emt 0:01:59]} (18. Qh2 $1 $18 Bf6 19. h6 fxg6 20. Bh3 (20. Nxe6 Qf7 $14)) 18... Kxf7 $11 {[%emt 0:00:18]} 19. Bxc4 {[%emt 0:00:19]} Nxc4 {[%emt 0:00:03]} 20. Qg2 {[%emt 0:00:11] aiming for Qg4.} e5 $2 {[%emt 0:07:15][%mdl 8192]} (20... Nxb2 $11 21. Qg4 Nxd1 22. Qxe6+ Kf8 23. Rxd1 (23. Nxd1 Qc4 $17) 23... Rd8) 21. Nf5 $1 $18 {[%emt 0:00:14]} exf4 $2 {[%emt 0:00:29]} (21... Bf8 {was necessary.}) 22. Qxg7+ {[%emt 0:00:05]} Ke8 {[%emt 0:00:05]} 23. Rhg1 {[%emt 0:04:12]} (23. Nxe7 $2 Qxe7 24. Rhg1 Rc7 25. Qxe7+ (25. Qg8+ $2 Kd7 $17) 25... Rxe7 $17) 23... Bf8 {[%emt 0:03:09] [#]} 24. Qg8 {[%emt 0:00:47]} ({Only move:} 24. Qh8 $1 $18) 24... Qf7 $11 {[%emt 0:00:25]} 25. Qh8 {[%emt 0:00:26]} (25. Ng7+ $1 $11 Ke7 26. Nf5+ Ke8 27. Ng7+ Ke7 28. Nf5+ Ke8) 25... Rd8 $2 {[%emt 0:02:05][%mdl 8192]} (25... Kd7 $17 26. Qd4 d5) 26. Rg7 $1 $18 {[%emt 0:03:10][%mdl 64] Skewer, Double Attack} Qf6 {[%emt 0:00:18]} 27. Qg8 {[%emt 0:00:01]} (27. Re7+ $142 Qxe7 28. Nxe7) 27... Rd7 {[%emt 0:00:30][%cal Rd7g7]} 28. Rxh7 {[%emt 0:00:23] Chess con chili.} (28. h6 $18) 28... Rxh7 $11 {[%emt 0:00:19]} 29. Qxh7 {[%emt 0:00:03]} Bc6 {[%emt 0:00:10][%mdl 8192]} (29... Qf7 $1 $11 {and Black has nothing to worry.} 30. Qh8 Kd7) 30. Qc7 $2 {[%emt 0:00:05]} (30. h6 $18) 30... Bd7 $15 {[%emt 0:00:16] White must now prevent ...Rc8.} 31. Nd4 {[%emt 0:00:29]} (31. Qb7 $15 Rc8 32. Rd3) 31... Rc8 {[%emt 0:00:06]} 32. Qb7 {[%emt 0:00:06] [#]} ({Better is} 32. Qa7) 32... Ne3 {[%emt 0:00:17]} (32... Nxa3+ $1 $17 {[%mdl 512]} 33. Kc1 (33. Ka2 Qf7+) 33... Nc4) 33. Nd5 {[%emt 0:00:22]} Nxd5 {[%emt 0:00:02]} 34. exd5 {[%emt 0:00:01][%cal Be4d5,Bd5c6,Bc6b7][%mdl 32] Re1+ is the strong threat.} Bg7 $2 {[%emt 0:00:09]} (34... Qe5 $11 {and Black stays safe.}) 35. Re1+ $18 {[%emt 0:00:01]} Kd8 {[%emt 0:00:02]} 36. c3 $40 {[%emt 0:00:38][%mdl 128] White mounts an attack.} (36. Qb6+ $18 Rc7 37. Re4) 36... Qf7 $2 {[%emt 0:00:11][%mdl 8192]} (36... Qh4 $14 37. Qb6+ Rc7) 37. Nc6+ {[%emt 0:00:09]} Rxc6 {[%emt 0:00:09]} 38. dxc6 {[%emt 0:00:01][%csl Gb7][%cal Rc6c7]} Bf5+ {[%emt 0:00:08]} 39. Ka1 {[%emt 0:00:01]} Qxb7 {[%emt 0:00:04]} 40. cxb7 {[%emt 0:00:02] White mates.} Kc7 {[%emt 0:00:22]} 41. Re7+ {[%emt 0:00:01]} Kb8 {[%emt 0:00:01]} 42. Rxg7 {[%emt 0:00:01]} d5 {[%emt 0:00:05]} 43. h6 {[%emt 0:00:01] Weighted Error Value: White=0.87/Black=0.98} 1-0

[Event "Czech Open-Rapid 2022"]
[Site "Pardubice"]
[Date "2022.07.21"]
[Round "8.1"]
[White "Akesson, Ralf"]
[Black "Donchenko, Alexander"]
[Result "1/2-1/2"]
[ECO "E35"]
[WhiteElo "2427"]
[BlackElo "2640"]
[Annotator "TA"]
[PlyCount "26"]
[EventDate "2022.07.20"]
[EventType "swiss"]
[EventCountry "CZE"]
[SourceTitle "playchess.com"]
[Source "ChessBase"]
[SourceQuality "1"]
[TimeControl "1200+10"]

{[%evp 11,26,0,0,0,0,-4,0,-9,-1,-8,-8,-4,-7,0,0,0,-8]} 1. d4 {[%emt 0:00:03]} Nf6 {[%emt 0:00:02]} 2. c4 {[%emt 0:00:02]} e6 {[%emt 0:00:02]} 3. Nc3 {[%emt 0:00:05]} Bb4 {[%emt 0:00:03]} 4. Qc2 {[%emt 0:00:03]} d5 {[%emt 0:00:02]} 5. cxd5 {[%emt 0:00:08]} exd5 {[%emt 0:00:02]} 6. Nf3 {[%emt 0:00:38]} O-O {[%emt 0:00:18] The position is equal. 6...0-0 is better than 6...c5.} 7. Bf4 {[%emt 0:00:19] E32: Nimzo-Indian: Classical (4 Qc2): 4...0-0.} c5 {[%emt 0:01:17]} 8. e3 {[%emt 0:02:18]} Nc6 {[%emt 0:03:16]} 9. Be2 {[%emt 0:00:48]} cxd4 {[%emt 0:00:54]} 10. Nxd4 {[%emt 0:00:18]} Nxd4 {[%emt 0:00:04]} 11. exd4 {[%emt 0:00:02] [#]} Bg4 $146 {[%emt 0:01:12]} ({Predecessor:} 11... Qb6 12. Be3 Bg4 13. Bd3 Rac8 14. O-O Bh5 15. Bf5 Bg6 16. Rfc1 Bxc3 17. bxc3 Bxf5 18. Qxf5 {0-1 (45) Baenziger,F (2325)-Vrolijk,L (2221) Prague 2016}) 12. Bxg4 {[%emt 0:01:04]} Nxg4 {[%emt 0:00:02]} 13. O-O {[%emt 0:00:05]} Rc8 {[%emt 0:00:22] A balanced but interesting game.  Weighted Error Value: White=0.02 (flawless) /Black=0.02 (flawless)} 1/2-1/2